fUST/lending_fUST_20241211
["ID","MTS","AMOUNT","RATE_DAILY","PERIOD"]
[344923981,1733885440590,-644.97893865,0.00029099,2]
[344923982,1733885440599,-644.97893865,0.00029099,2]
[344923983,1733885440610,-644.97893865,0.00029099,2]
[344923984,1733885440620,-644.97893865,0.00029099,2]
[344923985,1733885440785,-644.97893865,0.00029099,2]
[344923986,1733885440796,-644.97893865,0.00029099,2]
[344923987,1733885440806,-644.97893865,0.00029099,2]
[344923988,1733885440818,-644.97893865,0.00029099,2]
[344923989,1733885440829,-644.97893865,0.00029099,2]
[344923990,1733885440839,-21.17179515,0.00029099,2]
[344923991,1733885440851,-623.8071435,0.00029099,2]
[344923992,1733885440861,-644.97893865,0.00029099,2]
[344923993,1733885440871,-644.97893865,0.00029099,2]
[344923994,1733885440880,-644.97893865,0.00029099,2]
[344923995,1733885440890,-644.97893865,0.00029099,2]
[344923996,1733885440900,-644.97893865,0.00029099,2]
[344923997,1733885440911,-644.97893865,0.00029099,2]
[344923998,1733885440921,-644.97893865,0.00029099,2]
[344923999,1733885440931,-644.97893865,0.00029099,2]
[344924000,1733885440942,-644.97893865,0.00029099,2]
[344924001,1733885440952,-644.97893865,0.00029099,2]
[344924002,1733885440962,-644.97893865,0.00029099,2]
[344924003,1733885440971,-644.97893865,0.00029099,2]
[344924004,1733885440981,-644.97893865,0.00029099,2]
[344924005,1733885440991,-644.97893865,0.00029099,2]
[344924006,1733885441002,-644.97893865,0.00029099,2]
[344924007,1733885441012,-644.97893865,0.00029099,2]
[344924008,1733885441023,-644.97893865,0.00029099,2]
[344924009,1733885441033,-644.97893865,0.00029099,2]
[344924010,1733885441043,-644.97893865,0.00029099,2]
[344924011,1733885441053,-644.97893865,0.00029099,2]
[344924012,1733885441063,-644.97893865,0.00029099,2]
[344924013,1733885441073,-644.97893865,0.00029099,2]
[344924014,1733885441083,-644.97893865,0.00029099,2]
[344924015,1733885441092,-644.97893865,0.00029099,2]
[344924016,1733885441102,-644.97893865,0.00029099,2]
[344924017,1733885441111,-644.97893865,0.00029099,2]
[344924018,1733885441121,-623.47964071,0.00029099,2]
[344924019,1733885441131,-623.47964071,0.00029099,2]
[344924020,1733885441140,-623.47964071,0.00029099,2]
[344924021,1733885441150,-623.47964071,0.00029099,2]
[344924022,1733885441159,-623.47964071,0.00029099,2]
[344924023,1733885441169,-623.47964071,0.00029099,2]
[344924024,1733885441179,-623.47964071,0.00029099,2]
[344924025,1733885441188,-623.47964071,0.00029099,2]
[344924026,1733885441198,-623.47964071,0.00029099,2]
[344924027,1733885441208,-623.47964071,0.00029099,2]
[344924028,1733885441218,-623.47964071,0.00029099,2]
[344924029,1733885441227,-623.47964071,0.00029099,2]
[344924030,1733885441237,-623.47964071,0.00029099,2]
[344924031,1733885441247,-623.47964071,0.00029099,2]
[344924032,1733885441256,-623.47964071,0.00029099,2]
[344924033,1733885441266,-623.47964071,0.00029099,2]
[344924034,1733885441275,-623.47964071,0.00029099,2]
[344924035,1733885441284,-623.47964071,0.00029099,2]
[344924036,1733885441294,-623.47964071,0.00029099,2]
[344924037,1733885441303,-623.47964071,0.00029099,2]
[344924038,1733885441312,-623.47964071,0.00029099,2]
[344924039,1733885441322,-623.47964071,0.00029099,2]
[344924040,1733885441332,-623.47964071,0.00029099,2]
[344924041,1733885441342,-623.47964071,0.00029099,2]
[344924042,1733885441352,-623.47964071,0.00029099,2]
[344924043,1733885441362,-623.47964071,0.00029099,2]
[344924044,1733885441371,-623.4796407,0.00029099,2]
[344924045,1733885441381,-79628.51859602,0.000291,2]
[344924046,1733885441391,-587.0,0.00029228,2]
[344924047,1733885441402,-244.44430209,0.00029373,2]
[344924048,1733885441411,-265.0,0.000294,120]
[344924049,1733885441421,-302.75782099,0.0002942,2]
[344924050,1733885441434,-302.75782099,0.00029715,2]
[344924051,1733885441445,-1000.0,0.00029718,2]
[344924052,1733885441455,-150.682,0.00029725,2]
[344924053,1733885441464,-533.0,0.00029725,2]
[344924054,1733885441474,-2377.868,0.00029725,2]
[344924055,1733885441484,-2163.0,0.00029725,2]
[344924056,1733885441495,-367.536,0.00029725,2]
[344924057,1733885441508,-8030.60851572,0.0002976,2]
[344924058,1733885441517,-2000.71,0.0002985,7]
[344924059,1733885441526,-1002.43128611,0.00029852,2]
[344924060,1733885441535,-160.0,0.00029862,10]
[344924061,1733885441545,-196.78858729,0.00029862,2]
[344924062,1733885441554,-350.82272227,0.00029862,2]
[344924063,1733885441564,-500.0,0.00029862,7]
[344924064,1733885441574,-500.0,0.00029863,7]
[344924065,1733885441583,-502.15406878,0.00029863,7]
[344924066,1733885441592,-513.66240585,0.00029863,7]
[344924067,1733885441602,-500.0,0.00029863,7]
[344924068,1733885441611,-509.40577235,0.00029863,7]
[344924069,1733885441620,-502.06969134,0.00029863,7]
[344924070,1733885441629,-500.98192058,0.00029863,2]
[344924071,1733885441639,-500.0,0.00029863,7]
[344924072,1733885441648,-500.0,0.00029863,7]
[344924073,1733885441658,-440.66139914,0.00029863,7]
[344924074,1733885441667,-417.71761405,0.00029863,7]
[344924075,1733885441677,-500.0,0.00029863,7]
[344924076,1733885441688,-151.0,0.00029863,7]
[344924077,1733885441698,-341.44119624,0.00029863,7]
[344924078,1733885441707,-500.0,0.00029863,7]
[344924079,1733885441718,-213.19944306,0.00029863,7]
[344924080,1733885441726,-500.0,0.00029863,7]
[344924081,1733885441737,-503.33953758,0.00029863,7]
[344924082,1733885441749,-500.0,0.00029863,7]
[344924083,1733885441758,-506.83920279,0.00029863,7]
[344924084,1733885441768,-500.0,0.00029863,7]
[344924085,1733885441778,-350.93894056,0.00029863,7]
[344924086,1733885441787,-502.71530566,0.00029863,7]
[344924087,1733885441797,-502.29183468,0.00029863,7]
[344924088,1733885441807,-500.0,0.00029863,7]
[344924089,1733885441816,-356.40302358,0.00029863,7]
[344924090,1733885441828,-439.69066233,0.00029863,7]
[344924091,1733885441838,-500.0,0.00029863,7]
[344924092,1733885441847,-502.56349857,0.00029863,7]
[344924093,1733885441856,-174.344717,0.00029863,7]
[344924094,1733885441865,-151.0,0.00029863,7]
[344924095,1733885441879,-506.7634293,0.00029863,7]
[344924096,1733885441889,-505.70618487,0.00029863,7]
[344924097,1733885441898,-507.55093635,0.00029863,7]
[344924098,1733885441909,-151.0,0.00029863,7]
[344924099,1733885441918,-500.0,0.00029863,7]
[344924100,1733885441928,-500.0,0.00029863,7]
[344924101,1733885441941,-522.30873634,0.00029863,7]
[344924102,1733885441950,-151.0,0.00029863,7]
[344924103,1733885441960,-504.02145054,0.00029863,7]
[344924104,1733885441970,-151.0,0.00029863,7]
[344924105,1733885441980,-151.0,0.00029863,7]
[344924106,1733885441990,-500.0,0.00029863,7]
[344924107,1733885442000,-507.14863994,0.00029863,7]
[344924108,1733885442009,-512.14752796,0.00029863,7]
[344924109,1733885442018,-500.0,0.00029863,7]
[344924110,1733885442028,-500.0,0.00029863,7]
[344924111,1733885442037,-188.82,0.00029863,7]
[344924112,1733885442047,-500.0,0.00029863,7]
[344924113,1733885442060,-500.0,0.00029863,7]
[344924114,1733885442070,-500.0,0.00029863,7]
[344924115,1733885442080,-603.51641467,0.00029863,7]
[344924116,1733885442090,-500.0,0.00029863,7]
[344924117,1733885442100,-500.0,0.00029863,7]
[344924118,1733885442109,-500.0,0.00029863,7]
[344924119,1733885442120,-500.0,0.00029863,7]
[344924120,1733885442130,-417.99948997,0.00029863,7]
[344924121,1733885442140,-500.0,0.00029863,7]
[344924122,1733885442150,-500.0,0.00029863,7]
[344924123,1733885442160,-500.0,0.00029863,7]
[344924124,1733885442170,-204.67706413,0.00029863,7]
[344924125,1733885442183,-520.50249014,0.00029863,7]
[344924126,1733885442193,-500.0,0.00029863,7]
[344924127,1733885442203,-501.14994926,0.00029863,7]
[344924128,1733885442213,-500.0,0.00029863,7]
[344924129,1733885442223,-500.0,0.00029863,7]
[344924130,1733885442233,-500.0,0.00029863,7]
[344924131,1733885442244,-504.58229136,0.00029863,7]
[344924132,1733885442254,-500.0,0.00029863,7]
[344924133,1733885442263,-426.24763758,0.00029863,7]
[344924134,1733885442275,-500.0,0.00029863,7]
[344924135,1733885442295,-535.2047571,0.00029863,7]
[344924136,1733885442305,-502.17563208,0.00029863,7]
[344924137,1733885442315,-545.70373155,0.00029863,7]
[344924138,1733885442324,-500.0,0.00029863,7]
[344924139,1733885442336,-500.0,0.00029863,7]
[344924140,1733885442345,-500.0,0.00029863,7]
[344924141,1733885442355,-522.38564814,0.00029863,7]
[344924142,1733885442368,-500.0,0.00029863,7]
[344924143,1733885442377,-507.23129386,0.00029863,7]
[344924144,1733885442387,-500.0,0.00029863,7]
[344924145,1733885442396,-503.48416644,0.00029863,7]
[344924146,1733885442406,-511.23229582,0.00029863,7]
[344924147,1733885442415,-500.0,0.00029863,7]
[344924148,1733885442427,-500.0,0.00029863,7]
[344924149,1733885442437,-500.0,0.00029863,7]
[344924150,1733885442447,-500.0,0.00029863,7]
[344924151,1733885442456,-500.0,0.00029863,7]
[344924152,1733885442466,-500.0,0.00029863,7]
[344924153,1733885442475,-500.0,0.00029863,7]
[344924154,1733885442484,-182.89173627,0.00029863,7]
[344924155,1733885442494,-500.0,0.00029863,7]
[344924156,1733885442503,-500.0,0.00029863,7]
[344924157,1733885442512,-500.0,0.00029863,7]
[344924158,1733885442522,-500.0,0.00029863,7]
[344924159,1733885442531,-500.0,0.00029863,7]
[344924160,1733885442541,-500.0,0.00029863,7]
[344924161,1733885442551,-500.0,0.00029863,7]
[344924162,1733885442561,-500.0,0.00029863,7]
[344924163,1733885442570,-505.01230132,0.00029863,7]
[344924164,1733885442579,-501.90184943,0.00029863,7]
[344924165,1733885442589,-500.0,0.00029863,7]
[344924166,1733885442599,-500.0,0.00029863,7]
[344924167,1733885442609,-500.0,0.00029863,7]
[344924168,1733885442618,-512.04944596,0.00029863,7]
[344924169,1733885442627,-500.0,0.00029863,7]
[344924170,1733885442637,-500.0,0.00029863,7]
[344924171,1733885442646,-500.0,0.00029863,7]
[344924172,1733885442657,-504.98373085,0.00029863,7]
[344924173,1733885442669,-500.0,0.00029863,7]
[344924174,1733885442679,-500.0,0.00029863,7]
[344924175,1733885442689,-500.0,0.00029863,7]
[344924176,1733885442699,-500.0,0.00029863,7]
[344924177,1733885442709,-500.0,0.00029863,7]
[344924178,1733885442719,-507.56471969,0.00029863,7]
[344924179,1733885442729,-501.3059686,0.00029863,7]
[344924180,1733885442742,-502.60635075,0.00029863,7]
[344924181,1733885442752,-500.0,0.00029863,7]
[344924182,1733885442762,-520.61926657,0.00029863,7]
[344924183,1733885442772,-405.13180102,0.00029863,7]
[344924184,1733885442787,-500.0,0.00029863,7]
[344924185,1733885442804,-506.45000821,0.00029863,7]
[344924186,1733885442814,-242.49649477,0.00029863,7]
[344924187,1733885442824,-495.14128394,0.00029863,7]
[344924188,1733885442838,-500.47634211,0.00029863,7]
[344924189,1733885442847,-518.72237497,0.00029863,7]
[344924190,1733885442858,-508.87725941,0.00029863,7]
[344924191,1733885442867,-527.68,0.00029863,7]
[344924192,1733885442877,-500.0,0.00029863,7]
[344924193,1733885442887,-503.61666959,0.00029863,7]
[344924194,1733885442897,-500.0,0.00029863,7]
[344924195,1733885442907,-500.0,0.00029863,7]
[344924196,1733885442916,-502.97104915,0.00029863,7]
[344924197,1733885442927,-500.0,0.00029863,7]
[344924198,1733885442936,-500.0,0.00029863,7]
[344924199,1733885442946,-505.05877404,0.00029863,7]
[344924200,1733885442956,-500.0,0.00029863,7]
[344924201,1733885442966,-506.00871037,0.00029863,7]
[344924202,1733885442976,-513.41109379,0.00029863,7]
[344924203,1733885442986,-500.0,0.00029863,7]
[344924204,1733885442997,-500.0,0.00029863,7]
[344924205,1733885443008,-500.0,0.00029863,7]
[344924206,1733885443018,-500.0,0.00029863,7]
[344924207,1733885443029,-500.0,0.00029863,7]
[344924208,1733885443047,-587.44,0.00029863,7]
[344924209,1733885443057,-500.0,0.00029863,7]
[344924210,1733885443067,-515.49730786,0.00029863,7]
[344924211,1733885443077,-500.0,0.00029863,7]
[344924212,1733885443088,-500.0,0.00029863,7]
[344924213,1733885443102,-506.4171353,0.00029863,7]
[344924214,1733885443112,-534.53512693,0.00029863,7]
[344924215,1733885443121,-500.0,0.00029863,7]
[344924216,1733885443131,-500.0,0.00029863,7]
[344924217,1733885443142,-506.50575655,0.00029863,7]
[344924218,1733885443152,-507.37673121,0.00029863,7]
[344924219,1733885443162,-500.0,0.00029863,7]
[344924220,1733885443172,-500.0,0.00029863,7]
[344924221,1733885443181,-500.0,0.00029863,7]
[344924222,1733885443190,-506.22364987,0.00029863,7]
[344924223,1733885443200,-151.0,0.00029863,7]
[344924224,1733885443209,-500.0,0.00029863,7]
[344924225,1733885443222,-500.0,0.00029863,7]
[344924226,1733885443232,-607.28,0.00029863,7]
[344924227,1733885443242,-500.0,0.00029863,7]
[344924228,1733885443252,-413.40620521,0.00029863,7]
[344924229,1733885443263,-500.0,0.00029863,7]
[344924230,1733885443274,-515.51242641,0.00029863,7]
[344924231,1733885443287,-504.21396674,0.00029863,7]
[344924232,1733885443297,-504.30947548,0.00029863,7]
[344924233,1733885443308,-510.83810765,0.00029863,7]
[344924234,1733885443317,-535.74573633,0.00029863,7]
[344924235,1733885443327,-501.90996111,0.00029863,7]
[344924236,1733885443336,-507.51494667,0.00029863,7]
[344924237,1733885443346,-482.68109081,0.00029863,7]
[344924238,1733885443356,-500.0,0.00029863,7]
[344924239,1733885443367,-500.0,0.00029863,7]
[344924240,1733885443377,-505.0165793,0.00029863,7]
[344924241,1733885443386,-500.0,0.00029863,7]
[344924242,1733885443396,-500.0,0.00029863,7]
[344924243,1733885443504,-500.0,0.00029863,7]
[344924244,1733885443515,-500.0,0.00029863,7]
[344924245,1733885443524,-500.0,0.00029863,7]
[344924246,1733885443537,-500.0,0.00029863,7]
[344924247,1733885443546,-526.54873274,0.00029863,7]
[344924248,1733885443556,-269.19812621,0.00029863,2]
[344924249,1733885443565,-501.95062515,0.00029863,7]
[344924250,1733885443576,-194.38820589,0.00029863,7]
[344924251,1733885443586,-500.0,0.00029863,7]
[344924252,1733885443596,-502.1548456,0.00029863,7]
[344924253,1733885443606,-500.0,0.00029863,7]
[344924254,1733885443615,-500.0,0.00029863,7]
[344924255,1733885443625,-500.0,0.00029863,7]
[344924256,1733885443635,-503.44430614,0.00029863,7]
[344924257,1733885443645,-500.0,0.00029863,7]
[344924258,1733885443655,-500.0,0.00029863,7]
[344924259,1733885443664,-500.0,0.00029863,7]
[344924260,1733885443674,-500.0,0.00029863,7]
[344924261,1733885443683,-500.0,0.00029863,7]
[344924262,1733885443692,-500.0,0.00029863,7]
[344924263,1733885443702,-500.0,0.00029863,7]
[344924264,1733885443712,-500.0,0.00029863,7]
[344924265,1733885443721,-500.0,0.00029863,7]
[344924266,1733885443730,-500.0,0.00029863,7]
[344924267,1733885443743,-500.0,0.00029863,7]
[344924268,1733885443753,-500.0,0.00029863,7]
[344924269,1733885443762,-500.0,0.00029863,7]
[344924270,1733885443772,-500.0,0.00029863,7]
[344924271,1733885443784,-500.0,0.00029863,7]
[344924272,1733885443795,-500.0,0.00029863,7]
[344924273,1733885443805,-500.0,0.00029863,7]
[344924274,1733885443815,-201.06607129,0.00029863,7]
[344924275,1733885443825,-500.0,0.00029863,7]
[344924276,1733885443835,-236.80925641,0.00029863,7]
[344924277,1733885443845,-500.0,0.00029863,7]
[344924278,1733885443855,-504.16950323,0.00029863,7]
[344924279,1733885443865,-153.603926,0.00029863,7]
[344924280,1733885443879,-500.0,0.00029863,7]
[344924281,1733885443890,-500.0,0.00029863,7]
[344924282,1733885443902,-268.08572166,0.00029863,7]
[344924283,1733885443912,-500.0,0.00029863,7]
[344924284,1733885443922,-500.0,0.00029863,7]
[344924285,1733885443932,-504.84534559,0.00029863,7]
[344924286,1733885443941,-515.99942338,0.00029863,7]
[344924287,1733885443951,-509.0697448,0.00029863,7]
[344924288,1733885443961,-500.0,0.00029863,7]
[344924289,1733885443972,-500.0,0.00029863,7]
[344924290,1733885443981,-500.0,0.00029863,7]
[344924291,1733885443991,-502.82970115,0.00029863,7]
[344924292,1733885444000,-500.0,0.00029863,7]
[344924293,1733885444010,-507.36296331,0.00029863,7]
[344924294,1733885444020,-151.0,0.00029863,7]
[344924295,1733885444029,-500.0,0.00029863,7]
[344924296,1733885444041,-151.0,0.00029863,7]
[344924297,1733885444051,-566.40176029,0.00029863,7]
[344924298,1733885444061,-151.0,0.00029863,7]
[344924299,1733885444071,-151.0,0.00029863,7]
[344924300,1733885444080,-500.0,0.00029863,7]
[344924301,1733885444090,-500.0,0.00029863,7]
[344924302,1733885444100,-500.0,0.00029863,7]
[344924303,1733885444109,-500.0,0.00029863,7]
[344924304,1733885444120,-500.0,0.00029863,7]
[344924305,1733885444130,-500.0,0.00029863,7]
[344924306,1733885444139,-500.0,0.00029863,7]
[344924307,1733885444149,-500.0,0.00029863,7]
[344924308,1733885444159,-500.0,0.00029863,7]
[344924309,1733885444169,-500.0,0.00029863,7]
[344924310,1733885444178,-502.70884072,0.00029863,7]
[344924311,1733885444188,-509.82098597,0.00029863,7]
[344924312,1733885444198,-500.0,0.00029863,7]
[344924313,1733885444208,-500.0,0.00029863,7]
[344924314,1733885444218,-500.0,0.00029863,7]
[344924315,1733885444228,-500.0,0.00029863,7]
[344924316,1733885444238,-500.0,0.00029863,7]
[344924318,1733885444249,-500.0,0.00029863,7]
[344924319,1733885444259,-504.15849948,0.00029863,7]
[344924321,1733885444269,-500.0,0.00029863,7]
[344924323,1733885444279,-519.59679345,0.00029863,7]
[344924325,1733885444294,-500.0,0.00029863,7]
[344924326,1733885444303,-500.0,0.00029863,7]
[344924327,1733885444313,-471.5448671,0.00029863,7]
[344924328,1733885444323,-500.0,0.00029863,7]
[344924329,1733885444332,-500.0,0.00029863,7]
[344924330,1733885444342,-500.0,0.00029863,7]
[344924331,1733885444352,-504.09375412,0.00029863,7]
[344924332,1733885444362,-500.0,0.00029863,7]
[344924333,1733885444372,-500.0,0.00029863,7]
[344924334,1733885444382,-509.71025326,0.00029863,7]
[344924335,1733885444392,-500.0,0.00029863,7]
[344924336,1733885444402,-151.0,0.00029863,7]
[344924337,1733885444412,-151.0,0.00029863,7]
[344924338,1733885444421,-500.0,0.00029863,7]
[344924339,1733885444431,-500.0,0.00029863,7]
[344924340,1733885444440,-500.0,0.00029863,7]
[344924341,1733885444451,-500.0,0.00029863,7]
[344924342,1733885444461,-500.0,0.00029863,7]
[344924343,1733885444471,-502.68261214,0.00029863,7]
[344924344,1733885444481,-500.0,0.00029863,7]
[344924345,1733885444491,-500.0,0.00029863,7]
[344924346,1733885444500,-500.0,0.00029863,7]
[344924347,1733885444509,-542.85,0.00029863,7]
[344924348,1733885444519,-505.18842759,0.00029863,7]
[344924349,1733885444528,-201.91210458,0.00029863,7]
[344924350,1733885444542,-500.0,0.00029863,7]
[344924351,1733885444554,-500.0,0.00029863,7]
[344924354,1733885444564,-500.0,0.00029863,7]
[344924357,1733885444573,-500.0,0.00029863,7]
[344924359,1733885444581,-500.0,0.00029863,7]
[344924362,1733885444591,-500.0,0.00029863,7]
[344924365,1733885444602,-500.0,0.00029863,7]
[344924369,1733885444612,-500.0,0.00029863,7]
[344924370,1733885444622,-500.0,0.00029863,7]
[344924373,1733885444631,-545.29339213,0.00029863,7]
[344924377,1733885444641,-500.0,0.00029863,7]
[344924379,1733885444651,-500.0,0.00029863,7]
[344924383,1733885444661,-500.0,0.00029863,7]
[344924385,1733885444671,-300.47912412,0.00029863,7]
[344924387,1733885444681,-511.61305369,0.00029863,7]
[344924389,1733885444691,-561.06262202,0.00029863,7]
[344924391,1733885444701,-500.70403399,0.00029863,7]
[344924393,1733885444711,-500.0,0.00029863,7]
[344924395,1733885444721,-500.0,0.00029863,7]
[344924397,1733885444732,-500.0,0.00029863,7]
[344924399,1733885444745,-500.0,0.00029863,7]
[344924400,1733885444754,-500.0,0.00029863,7]
[344924401,1733885444763,-507.79002435,0.00029863,7]
[344924402,1733885444775,-153.281741,0.00029863,7]
[344924403,1733885444785,-500.0,0.00029863,7]
[344924405,1733885444798,-500.0,0.00029863,7]
[344924407,1733885444807,-151.0,0.00029863,7]
[344924409,1733885444818,-151.0,0.00029863,7]
[344924410,1733885444827,-500.0,0.00029863,7]
[344924411,1733885444836,-500.0,0.00029863,7]
[344924412,1733885444846,-355.20413123,0.00029863,7]
[344924413,1733885444856,-500.0,0.00029863,7]
[344924414,1733885444866,-500.0,0.00029863,7]
[344924415,1733885444876,-500.0,0.00029863,7]
[344924416,1733885444885,-500.0,0.00029863,7]
[344924417,1733885444895,-500.0,0.00029863,7]
[344924418,1733885444905,-500.0,0.00029863,7]
[344924420,1733885444914,-500.0,0.00029863,7]
[344924422,1733885444924,-500.0,0.00029863,7]
[344924424,1733885444934,-500.0,0.00029863,7]
[344924425,1733885444944,-500.0,0.00029863,7]
[344924427,1733885444953,-151.0,0.00029863,7]
[344924428,1733885444963,-500.0,0.00029863,7]
[344924429,1733885444973,-500.0,0.00029863,7]
[344924430,1733885444983,-500.31270829,0.00029863,7]
[344924431,1733885444993,-250.253633,0.00029863,7]
[344924432,1733885445003,-500.0,0.00029863,7]
[344924433,1733885445013,-500.0,0.00029863,7]
[344924434,1733885445022,-500.0,0.00029863,7]
[344924435,1733885445032,-500.0,0.00029863,7]
[344924436,1733885445045,-500.0,0.00029863,7]
[344924437,1733885445055,-500.0,0.00029863,7]
[344924438,1733885445065,-500.0,0.00029863,2]
[344924439,1733885445075,-500.0,0.00029863,7]
[344924440,1733885445085,-500.0,0.00029863,2]
[344924441,1733885445095,-500.0,0.00029863,7]
[344924443,1733885445105,-500.0,0.00029863,2]
[344924445,1733885445114,-500.0,0.00029863,7]
[344924447,1733885445124,-587.84777436,0.00029863,7]
[344924448,1733885445134,-500.0,0.00029863,7]
[344924449,1733885445145,-500.0,0.00029863,2]
[344924450,1733885445155,-500.0,0.00029863,7]
[344924451,1733885445165,-500.0,0.00029863,2]
[344924452,1733885445175,-500.0,0.00029863,7]
[344924453,1733885445185,-330.14971857,0.00029863,2]
[344924454,1733885445195,-500.0,0.00029863,7]
[344924455,1733885445205,-500.0,0.00029863,7]
[344924456,1733885445215,-634.54208162,0.00029863,7]
[344924457,1733885445226,-500.0,0.00029863,7]
[344924458,1733885445236,-510.20442553,0.00029863,7]
[344924459,1733885445246,-500.0,0.00029863,7]
[344924460,1733885445257,-500.0,0.00029863,7]
[344924461,1733885445266,-500.0,0.00029863,7]
[344924462,1733885445276,-500.0,0.00029863,7]
[344924463,1733885445286,-500.0,0.00029863,7]
[344924464,1733885445300,-500.0,0.00029863,7]
[344924465,1733885445310,-504.11184714,0.00029863,7]
[344924466,1733885445320,-500.0,0.00029863,7]
[344924467,1733885445330,-500.0,0.00029863,7]
[344924468,1733885445341,-500.0,0.00029863,7]
[344924469,1733885445351,-500.0,0.00029863,7]
[344924470,1733885445362,-500.0,0.00029863,7]
[344924471,1733885445372,-291.28,0.00029863,7]
[344924472,1733885445382,-500.0,0.00029863,7]
[344924473,1733885445391,-500.0,0.00029863,7]
[344924474,1733885445401,-500.0,0.00029863,7]
[344924475,1733885445411,-500.0,0.00029863,7]
[344924476,1733885445420,-310.40047534,0.00029863,7]
[344924477,1733885445430,-500.0,0.00029863,7]
[344924478,1733885445439,-500.0,0.00029863,7]
[344924479,1733885445449,-500.0,0.00029863,7]
[344924480,1733885445459,-500.0,0.00029863,7]
[344924481,1733885445469,-500.0,0.00029863,7]
[344924482,1733885445479,-500.0,0.00029863,7]
[344924483,1733885445489,-500.0,0.00029863,7]
[344924484,1733885445498,-552.98275242,0.00029863,7]
[344924485,1733885445508,-500.0,0.00029863,7]
[344924486,1733885445517,-500.0,0.00029863,7]
[344924487,1733885445527,-500.0,0.00029863,7]
[344924488,1733885445539,-500.0,0.00029863,7]
[344924489,1733885445552,-500.0,0.00029863,7]
[344924490,1733885445566,-500.0,0.00029863,7]
[344924491,1733885445575,-500.0,0.00029863,7]
[344924492,1733885445584,-500.0,0.00029863,7]
[344924493,1733885445595,-500.0,0.00029863,7]
[344924494,1733885445605,-500.0,0.00029863,7]
[344924495,1733885445615,-501.51294541,0.00029863,7]
[344924496,1733885445625,-500.0,0.00029863,7]
[344924497,1733885445635,-509.46753258,0.00029863,7]
[344924498,1733885445645,-207.51005473,0.00029863,7]
[344924499,1733885445654,-500.0,0.00029863,7]
[344924500,1733885445664,-501.62146459,0.00029863,7]
[344924501,1733885445673,-559.20635901,0.00029863,7]
[344924502,1733885445683,-500.0,0.00029863,7]
[344924503,1733885445693,-500.0,0.00029863,7]
[344924504,1733885445702,-500.0,0.00029863,7]
[344924505,1733885445711,-500.0,0.00029863,7]
[344924506,1733885445721,-500.0,0.00029863,7]
[344924507,1733885445730,-500.0,0.00029863,7]
[344924508,1733885445742,-500.0,0.00029863,7]
[344924509,1733885445753,-500.0,0.00029863,7]
[344924510,1733885445762,-500.0,0.00029863,7]
[344924511,1733885445772,-500.0,0.00029863,7]
[344924512,1733885445782,-500.0,0.00029863,7]
[344924513,1733885445792,-500.0,0.00029863,7]
[344924514,1733885445802,-503.16910695,0.00029863,7]
[344924515,1733885445812,-500.0,0.00029863,7]
[344924516,1733885445822,-500.0,0.00029863,7]
[344924517,1733885445831,-500.0,0.00029863,7]
[344924518,1733885445841,-179.61579223,0.00029863,7]
[344924519,1733885445850,-500.0,0.00029863,7]
[344924520,1733885445859,-504.03386399,0.00029863,7]
[344924521,1733885445868,-500.0,0.00029863,7]
[344924522,1733885445878,-576.18588574,0.00029863,7]
[344924523,1733885445887,-493.40885998,0.00029863,7]